bitfinex-derivatives/quotes_BTCF0:USTF0_20250718
["timestamp","ask_amount","ask_price","bid_price","bid_amount"]
[1752870493655,0.09090838,117080.0,117070.0,0.8505016]
[1752870493858,0.09138446,117080.0,117070.0,1.36757496]
[1752870494662,0.09138446,117080.0,117070.0,0.8505016]
[1752870494856,0.09138446,117080.0,117070.0,1.36757496]
[1752870496063,0.09138446,117080.0,117070.0,0.8505016]
[1752870496265,0.09138446,117080.0,117070.0,1.36757496]
[1752870496462,0.10913892,117080.0,117070.0,1.36757496]
[1752870496760,0.09347,117120.0,117110.0,0.50840115]
[1752870496966,0.52347,117120.0,117110.0,0.50840115]
[1752870497164,0.6941086,117120.0,117110.0,0.50840115]
[1752870497360,1.62017196,117120.0,117110.0,0.50840115]
[1752870498066,1.46990336,117120.0,117110.0,0.50840115]
[1752870498265,1.47690336,117120.0,117110.0,0.50940115]
[1752870498660,1.59113336,117120.0,117110.0,0.50940115]
[1752870498862,1.76177196,117120.0,117110.0,0.55281114]
[1752870499058,1.68583911,117120.0,117110.0,0.55281114]
[1752870499269,1.68583911,117120.0,117110.0,0.55381114]
[1752870499974,1.68383911,117120.0,117110.0,0.55381114]
[1752870500470,0.54884,117120.0,117110.0,0.91461114]
[1752870501166,0.54884,117120.0,117110.0,1.35575165]
[1752870501360,0.435,117120.0,117110.0,1.35575165]
[1752870501962,0.435,117120.0,117110.0,0.91461114]
[1752870502164,0.435,117120.0,117110.0,1.35575165]
[1752870502362,0.175,117120.0,117110.0,1.35575165]
[1752870502859,0.175,117120.0,117110.0,0.91461114]
[1752870503062,0.60884,117120.0,117110.0,0.91461114]
[1752870503267,1.22061911,117120.0,117110.0,0.55381114]
[1752870503468,1.16421051,117120.0,117110.0,0.55381114]
[1752870503767,0.72307,117120.0,117110.0,0.91461114]
[1752870504070,1.16421051,117120.0,117110.0,0.91461114]
[1752870504370,0.77126,117120.0,117110.0,0.91461114]
[1752870504577,0.89421051,117120.0,117110.0,0.91461114]
[1752870504778,0.94240051,117120.0,117110.0,0.91461114]
[1752870505176,1.16240051,117120.0,117110.0,0.91461114]
[1752870505577,0.72126,117120.0,117110.0,0.91461114]
[1752870505875,1.11421051,117120.0,117110.0,0.91461114]
[1752870506277,0.67307,117120.0,117110.0,0.91461114]
[1752870506478,1.28484921,117120.0,117110.0,0.91461114]
[1752870506681,1.33303921,117120.0,117110.0,0.91461114]
[1752870506982,1.33303921,117120.0,117110.0,0.66384794]
[1752870507174,1.2526987,117120.0,117110.0,0.30304794]
[1752870507371,1.69383921,117120.0,117110.0,0.47370124]
[1752870507574,2.13497972,117120.0,117110.0,0.06461794]
[1752870507778,2.30575572,117120.0,117110.0,0.04540999]
[1752870508376,1.4234747,117120.0,117110.0,0.04540999]
[1752870508578,1.4234747,117120.0,117110.0,0.21606329]
[1752870508778,2.32296042,117120.0,117110.0,0.21606329]
[1752870508978,1.95773529,117120.0,117110.0,0.21606329]
[1752870510582,2.02773633,117120.0,117110.0,0.21606329]
[1752870510785,1.66693633,117120.0,117110.0,0.24040329]
[1752870510980,2.02773633,117120.0,117110.0,0.24040329]
[1752870511287,1.66693633,117120.0,117110.0,0.28775329]
[1752870511485,1.14988044,117120.0,117110.0,0.24040329]
[1752870511779,1.49616033,117120.0,117110.0,0.52853329]
[1752870511979,0.76027574,117120.0,117110.0,0.52853329]
[1752870512189,0.64604574,117120.0,117110.0,0.52853329]
[1752870512379,0.64604574,117120.0,117110.0,0.88933329]
[1752870512985,0.32604574,117120.0,117110.0,1.4252955]
[1752870513185,0.32604574,117120.0,117110.0,0.90823961]
[1752870513380,0.64604574,117120.0,117110.0,0.90823961]
[1752870514085,0.25220574,117120.0,117110.0,0.90823961]
[1752870514681,0.52220574,117120.0,117110.0,0.90823961]
[1752870515086,0.29220574,117120.0,117110.0,0.90823961]
[1752870515789,0.31220574,117120.0,117110.0,0.90823961]
[1752870516387,0.54484574,117120.0,117110.0,0.9080516]
[1752870516585,1.50079083,117120.0,117110.0,0.9080516]
[1752870516790,1.50079083,117120.0,117110.0,0.5472516]
[1752870516987,0.98373494,117120.0,117110.0,0.4679516]
[1752870517289,1.86159083,117120.0,117110.0,0.234782]
[1752870518485,1.86159083,117120.0,117110.0,0.23522611]
[1752870518882,1.34453494,117120.0,117110.0,0.23522611]
[1752870519086,1.86159083,117120.0,117110.0,0.23522611]
[1752870519286,1.86159083,117120.0,117110.0,0.06457241]
[1752870519895,1.86159083,117120.0,117110.0,0.04540999]
[1752870520391,2.03236683,117120.0,117110.0,0.04540999]
[1752870520593,2.03236683,117120.0,117110.0,0.06426415]
[1752870520990,2.03236683,117120.0,117110.0,0.23491785]
[1752870521395,2.03236683,117120.0,117110.0,0.21606369]
[1752870521594,2.03236683,117120.0,117110.0,0.23524826]
[1752870521799,1.86159083,117120.0,117110.0,0.23524826]
[1752870522191,1.34453494,117120.0,117110.0,0.23524826]
[1752870522391,1.26015059,117120.0,117110.0,0.23524826]
[1752870522696,1.62095059,117120.0,117110.0,0.43643826]
[1752870522893,1.43078979,117120.0,117110.0,0.46841826]
[1752870523086,1.43078979,117120.0,117110.0,0.54771826]
[1752870523291,0.9137339,117120.0,117110.0,0.54771826]
[1752870523488,1.43078979,117120.0,117110.0,0.52853369]
[1752870523692,1.79158979,117120.0,117110.0,0.52853369]
[1752870524298,1.79158979,117120.0,117110.0,0.41725369]
[1752870525800,1.79158979,117120.0,117110.0,0.4365272]
[1752870526096,0.5702747,117120.0,117110.0,0.5478072]
[1752870526395,0.4622047,117120.0,117110.0,0.9086072]
[1752870526601,0.4622047,117120.0,117110.0,1.42566309]
[1752870526795,0.4622047,117120.0,117110.0,0.9086072]
[1752870528600,0.4622047,117120.0,117110.0,0.5478072]
[1752870528802,0.4622047,117120.0,117110.0,0.9086072]
[1752870529095,0.4622047,117120.0,117110.0,1.42566309]
[1752870529300,0.1422047,117120.0,117110.0,1.42566309]
[1752870529900,0.1422047,117120.0,117110.0,0.9086072]
[1752870530099,0.1422047,117120.0,117110.0,1.42566309]
[1752870530401,0.1422047,117120.0,117110.0,0.9086072]
[1752870530598,0.1422047,117120.0,117110.0,1.42566309]
[1752870533403,0.1822047,117120.0,117110.0,1.42566309]
[1752870533601,0.10748719,117140.0,117130.0,0.1706247]
[1752870533809,0.61388497,117140.0,117130.0,0.5018358]
[1752870534103,1.06292813,117140.0,117130.0,0.5018358]
[1752870534298,0.43780224,117140.0,117130.0,1.37969169]
[1752870534799,0.13989254,117140.0,117130.0,1.37969169]
[1752870535003,0.09667254,117140.0,117130.0,0.8636358]
[1752870535206,0.23264,117160.0,117150.0,0.2931556]
[1752870535400,0.67264,117160.0,117150.0,0.86253023]
[1752870536302,0.72089,117160.0,117150.0,0.86253023]
[1752870536602,0.72589,117160.0,117150.0,0.86453023]
[1752870537508,1.30994749,117160.0,117150.0,0.86453023]
[1752870537705,0.7928916,117160.0,117150.0,0.86453023]
[1752870538204,1.30994749,117160.0,117150.0,0.86453023]
[1752870539005,0.7928916,117160.0,117150.0,0.86453023]
[1752870539303,1.30994749,117160.0,117150.0,0.86453023]
[1752870539507,0.7928916,117160.0,117150.0,0.86453023]
[1752870539906,0.5120016,117160.0,117150.0,1.38158612]
[1752870540111,0.5120016,117160.0,117150.0,0.86453023]
[1752870540298,0.14552105,117160.0,117150.0,1.38158612]
[1752870540504,0.10807,117180.0,117170.0,0.4830364]
[1752870540705,0.16194,117180.0,117170.0,0.86251515]
[1752870540907,1.21954779,117180.0,117170.0,0.4830364]
[1752870541212,1.3366528,117180.0,117170.0,0.4830364]
[1752870541905,1.6974528,117180.0,117170.0,0.1705665]
[1752870542109,0.3326365,117170.0,117160.0,0.42751103]
[1752870542302,1.64049239,117170.0,117160.0,0.18986893]
[1752870542510,1.75181239,117170.0,117160.0,0.18986893]
[1752870543104,1.58124589,117170.0,117150.0,0.2258269]
[1752870543312,0.4440002,117140.0,117130.0,0.3698881]
[1752870543606,1.75185609,117140.0,117130.0,0.2569381]
[1752870543811,1.92260009,117140.0,117130.0,0.0187411]
[1752870544309,1.92260009,117140.0,117110.0,0.51472207]
[1752870544310,0.170639,117120.0,117110.0,0.51472207]
[1752870544512,1.80268489,117120.0,117110.0,0.25875467]
[1752870544711,2.13268489,117120.0,117110.0,0.37228817]
[1752870544911,2.13268489,117120.0,117110.0,0.23440817]
[1752870545513,1.615629,117120.0,117110.0,0.23440817]
[1752870545713,2.13268489,117120.0,117110.0,0.23440817]
[1752870546015,2.13468489,117120.0,117110.0,0.43040817]
[1752870546213,1.77388489,117120.0,117110.0,0.43040817]
[1752870546409,0.58631,117120.0,117110.0,0.54491817]
[1752870546610,0.37551,117120.0,117110.0,0.90571817]
[1752870546915,0.2806202,117120.0,117110.0,1.42277406]
[1752870547117,0.2806202,117120.0,117110.0,0.90571817]
[1752870547319,0.34942802,117120.0,117110.0,0.90571817]
[1752870547713,0.33180782,117120.0,117110.0,0.90571817]
[1752870548318,0.35180782,117120.0,117110.0,0.90571817]
[1752870550917,0.55180782,117120.0,117110.0,0.90571817]
[1752870551419,0.66431782,117120.0,117110.0,0.90571817]
[1752870551613,1.40157271,117120.0,117110.0,0.90571817]
[1752870551817,1.23093371,117120.0,117110.0,0.90571817]
[1752870552714,0.82519782,117120.0,117110.0,0.90571817]
[1752870553218,0.71387782,117120.0,117110.0,0.90571817]
[1752870554115,1.23093371,117120.0,117110.0,0.90571817]
[1752870554711,1.16212589,117120.0,117110.0,0.90571817]
[1752870554915,0.64507,117120.0,117110.0,1.20091817]
[1752870555111,0.483,117120.0,117110.0,1.20091817]
[1752870556321,1.44408479,117120.0,117110.0,1.20091817]
[1752870556615,1.44408479,117120.0,117110.0,1.11795817]
[1752870556816,1.80488479,117120.0,117110.0,0.51133466]
[1752870557017,1.80488479,117120.0,117110.0,0.53022515]
[1752870557222,1.80488479,117120.0,117110.0,0.31660049]
[1752870557424,1.30563316,117120.0,117110.0,0.48725409]
[1752870557618,1.82268905,117120.0,117110.0,0.48725409]
[1752870559322,2.18348905,117120.0,117110.0,0.31660049]
[1752870559723,0.1706682,117100.0,117090.0,0.45804911]
[1752870559921,0.98927246,117100.0,117090.0,0.58437911]
[1752870560121,1.50632835,117100.0,117090.0,0.58437911]
[1752870560323,1.50632835,117100.0,117090.0,0.62678259]
[1752870560525,0.97486015,117100.0,117090.0,0.62678259]
[1752870561016,0.45880426,117100.0,117090.0,0.99058259]
[1752870561625,0.26880426,117100.0,117090.0,0.99058259]
[1752870562121,0.441,117100.0,117090.0,0.99058259]
[1752870562723,0.441,117100.0,117090.0,1.50763848]
[1752870562923,0.231,117100.0,117090.0,1.50763848]
[1752870563124,0.231,117100.0,117090.0,0.99058259]
[1752870563826,0.231,117100.0,117090.0,1.12414259]
[1752870564121,0.231,117100.0,117090.0,1.16998582]
[1752870564329,0.421,117100.0,117090.0,0.76334259]
[1752870564625,0.421,117100.0,117090.0,1.12414259]
[1752870566430,0.121,117100.0,117090.0,1.12414259]
[1752870566623,0.121,117100.0,117090.0,1.68704171]
[1752870567128,0.131,117100.0,117090.0,1.68704171]
[1752870569124,0.121,117100.0,117090.0,1.68704171]
[1752870569324,0.161,117100.0,117090.0,1.16998582]
[1752870569928,0.161,117100.0,117090.0,2.35110582]
[1752870570135,0.16235946,117100.0,117090.0,2.35110582]
[1752870570430,0.16235946,117100.0,117090.0,2.30526259]
[1752870570625,0.67941535,117100.0,117090.0,2.30526259]
[1752870570823,0.16235946,117100.0,117090.0,2.26259229]
[1752870571130,0.81008385,117100.0,117090.0,1.85913609]
[1752870571326,1.55136918,117100.0,117090.0,1.85913609]
[1752870572529,1.01990068,117100.0,117090.0,1.85913609]
[1752870573123,0.67351329,117100.0,117090.0,1.85913609]
[1752870573329,0.50284479,117100.0,117090.0,1.85913609]
[1752870573526,1.03742933,117100.0,117090.0,1.85913609]
[1752870574729,1.20809783,117100.0,117090.0,1.85913609]
[1752870575330,1.03742933,117100.0,117090.0,1.85913609]
[1752870575630,1.03742933,117100.0,117090.0,1.72557609]
[1752870575832,1.03742933,117100.0,117090.0,2.51269609]
[1752870576635,1.20809783,117100.0,117090.0,2.51269609]
[1752870578031,0.69104194,117100.0,117090.0,2.51269609]
[1752870578332,1.20809783,117100.0,117090.0,2.51269609]
[1752870578938,0.52037344,117100.0,117090.0,2.51269609]
[1752870579134,1.03742933,117100.0,117090.0,2.51269609]
[1752870579434,1.20809793,117100.0,117090.0,2.51269609]
[1752870581132,0.52037344,117100.0,117090.0,2.51269609]
[1752870581435,1.20809783,117100.0,117090.0,2.51269609]
[1752870581628,0.69104194,117100.0,117090.0,2.51269609]
[1752870581934,1.20809783,117100.0,117090.0,2.51269609]
[1752870582129,0.69104194,117100.0,117090.0,2.51269609]
[1752870582333,1.20809783,117100.0,117090.0,2.51269609]
[1752870586735,1.03742933,117100.0,117090.0,2.51269609]
[1752870587733,1.20809803,117100.0,117090.0,2.51269609]
[1752870588333,0.69104214,117100.0,117090.0,2.51269609]
[1752870588537,1.20809803,117100.0,117090.0,2.51269609]
[1752870589538,1.03742933,117100.0,117090.0,2.51269609]
[1752870589735,1.20809813,117100.0,117090.0,2.51269609]
[1752870590045,1.56889813,117100.0,117090.0,2.51269609]
[1752870590540,1.03742933,117100.0,117090.0,2.51269609]
[1752870590741,1.56889813,117100.0,117090.0,2.51269609]
[1752870591041,1.13230865,117100.0,117090.0,2.51269609]
[1752870591242,0.96163985,117100.0,117090.0,2.51269609]
[1752870591438,0.52037344,117100.0,117090.0,2.51269609]
[1752870591632,0.96163985,117100.0,117090.0,2.51269609]
[1752870592142,0.96163985,117100.0,117090.0,1.72557609]
[1752870592442,0.96163985,117100.0,117090.0,2.51085609]
[1752870593242,1.49310865,117100.0,117090.0,2.51085609]
[1752870593443,0.88117344,117100.0,117090.0,2.51085609]
[1752870593638,0.96163985,117100.0,117090.0,2.51085609]
[1752870595439,0.52037344,117100.0,117090.0,2.51085609]
[1752870595742,0.96163985,117100.0,117090.0,2.51085609]
[1752870595946,0.52037344,117100.0,117090.0,2.51085609]
[1752870596141,0.96163985,117100.0,117090.0,2.51085609]
[1752870597445,0.52037344,117100.0,117090.0,2.51085609]
[1752870598046,0.96163985,117100.0,117090.0,2.51085609]
[1752870598349,1.13230865,117100.0,117090.0,2.51085609]
[1752870598554,0.69104224,117100.0,117090.0,2.51085609]
[1752870598849,1.13230865,117100.0,117090.0,2.51085609]
[1752870599045,0.96163985,117100.0,117090.0,2.51085609]
[1752870599245,0.52037344,117100.0,117090.0,2.51085609]
[1752870599450,0.96163985,117100.0,117090.0,2.64441609]
[1752870600156,0.52037344,117100.0,117090.0,2.64441609]
[1752870600652,0.52037344,117100.0,117090.0,2.51085609]
[1752870600857,0.24037344,117100.0,117090.0,2.51085609]
[1752870601152,0.21224249,117100.0,117090.0,2.87165609]
[1752870601352,0.06970486,117120.0,117110.0,0.4794643]
[1752870601552,0.06970486,117120.0,117110.0,1.64308947]
[1752870601553,0.11,117120.0,117110.0,1.64308947]
[1752870601757,0.01171,117140.0,117130.0,0.4794351]
[1752870602053,0.81377641,117150.0,117140.0,0.4794206]
[1752870602252,1.023106,117150.0,117140.0,1.6606606]
[1752870602448,1.29377641,117150.0,117140.0,1.6606606]
[1752870602852,1.46437241,117150.0,117140.0,1.6606606]
[1752870603052,1.48870241,117150.0,117140.0,1.6606606]
[1752870603447,1.48870241,117150.0,117140.0,2.4443806]
[1752870603860,0.90992,117150.0,117140.0,2.4443806]
[1752870604056,0.90992,117150.0,117140.0,1.6606606]
[1752870604259,0.54912,117150.0,117140.0,2.4442606]
[1752870604458,0.49171,117150.0,117140.0,2.4442606]
[1752870604656,0.49371,117150.0,117140.0,2.4452606]
[1752870604856,1.49070201,117150.0,117140.0,2.4451406]
[1752870605960,1.42054359,117150.0,117140.0,2.4451406]
[1752870606159,1.59113919,117150.0,117140.0,2.4451406]
[1752870606463,1.14987278,117150.0,117140.0,2.4451406]
[1752870606760,1.59113919,117150.0,117140.0,2.4451406]
[1752870607961,1.65200638,117150.0,117140.0,2.4451406]
[1752870608462,1.59113919,117150.0,117140.0,2.4451406]
[1752870609367,1.14987278,117150.0,117140.0,2.4451406]
[1752870609565,1.59113919,117150.0,117140.0,2.4451406]
[1752870609867,1.14987278,117150.0,117140.0,2.4451406]
[1752870610070,1.59113919,117150.0,117140.0,2.4451406]
[1752870610368,1.63933919,117150.0,117140.0,2.4451406]
[1752870610570,1.63933919,117150.0,117140.0,2.4200106]
[1752870611172,1.63933919,117150.0,117140.0,2.2494]
[1752870611569,1.63933919,117150.0,117140.0,2.07926]
[1752870611972,1.70020638,117150.0,117140.0,1.9646]
[1752870612167,1.70020638,117150.0,117140.0,1.86674]
[1752870612369,1.95020638,117150.0,117140.0,0.22638]
[1752870612672,2.12093438,117150.0,117140.0,1.0085]
[1752870613069,1.3014436,117150.0,117140.0,0.58085274]
[1752870613368,1.07535777,117150.0,117140.0,1.38694274]
[1752870613568,0.90476217,117150.0,117140.0,1.38694274]
[1752870613873,0.85997217,117150.0,117140.0,1.38694274]
[1752870614465,0.49917217,117150.0,117140.0,1.82820915]
[1752870615075,0.49917217,117150.0,117140.0,1.38694274]
[1752870615275,0.49917217,117150.0,117140.0,1.90350111]
[1752870615468,0.29917217,117150.0,117140.0,2.26430111]
[1752870615675,0.24917217,117150.0,117140.0,2.26430111]
[1752870615871,0.14917217,117150.0,117140.0,2.26430111]
[1752870616073,0.05417217,117150.0,117140.0,2.26430111]
[1752870616267,0.67646829,117180.0,117170.0,0.1705669]
[1752870616575,1.16646829,117180.0,117170.0,1.2255069]
[1752870617267,0.99590719,117180.0,117170.0,1.2255069]
[1752870617675,1.00290719,117180.0,117170.0,1.2265069]
[1752870617874,0.95470719,117180.0,117170.0,1.2265069]
[1752870618070,0.79753949,117180.0,117170.0,1.2265069]
[1752870618273,1.55626786,117180.0,117170.0,1.2265069]
[1752870618578,1.49540067,117180.0,117170.0,1.2265069]
[1752870618778,0.9788423,117180.0,117170.0,1.2265069]
[1752870618973,1.85620067,117180.0,117170.0,1.2265069]
[1752870619878,1.3396423,117180.0,117170.0,1.2265069]
[1752870620078,1.85620067,117180.0,117170.0,1.2265069]
[1752870620277,1.3396423,117180.0,117170.0,1.2265069]
[1752870620774,1.85620067,117180.0,117170.0,1.2265069]
[1752870620981,1.85620067,117180.0,117170.0,1.26885845]
[1752870621783,1.3396423,117180.0,117170.0,1.26885845]
[1752870621983,1.85620067,117180.0,117170.0,1.26885845]
[1752870622179,1.3396423,117180.0,117170.0,1.26885845]
[1752870622387,1.85620067,117180.0,117170.0,1.26885845]
[1752870622885,1.3396423,117180.0,117170.0,1.26885845]
[1752870623086,1.85620067,117180.0,117170.0,1.26885845]
[1752870623285,1.85620067,117180.0,117170.0,1.09829155]
[1752870623486,1.85620067,117180.0,117170.0,1.26885875]
[1752870625086,1.92476221,117180.0,117170.0,1.26885875]
[1752870625387,1.92476221,117180.0,117170.0,1.23761884]
[1752870626088,1.40935911,117180.0,117170.0,1.23761884]
[1752870626288,1.92591748,117180.0,117170.0,1.23761884]
[1752870626788,1.92591748,117180.0,117170.0,1.28759884]
[1752870628388,1.94281983,117180.0,117170.0,1.28759884]
[1752870631790,1.42626146,117180.0,117170.0,1.28759884]
[1752870631992,1.94281983,117180.0,117170.0,1.28759884]
[1752870634394,1.42626186,117180.0,117170.0,1.28759884]
[1752870635193,1.86694331,117180.0,117170.0,1.28759884]
[1752870637399,1.42626186,117180.0,117170.0,1.28759884]
[1752870637599,1.86694331,117180.0,117170.0,1.26885875]
[1752870637795,1.69639061,117180.0,117170.0,1.28813241]
[1752870638097,1.86694331,117180.0,117170.0,1.28813241]
[1752870638791,2.72831276,117180.0,117170.0,0.49983155]
[1752870638997,2.72831276,117180.0,117170.0,0.40331]
[1752870639795,2.28763131,117180.0,117170.0,0.40331]
[1752870639996,2.72831276,117180.0,117170.0,0.001]
[1752870640300,0.1705818,117160.0,117150.0,0.16064]
[1752870640501,0.1705964,117150.0,117140.0,0.38602]
[1752870640699,1.4889802,117150.0,117140.0,1.333831]
[1752870640889,1.4889802,117150.0,117140.0,1.16322]
[1752870641199,1.49013547,117150.0,117140.0,1.333831]
[1752870641700,1.49013547,117150.0,117140.0,1.356571]
[1752870642099,1.49113547,117150.0,117140.0,1.358571]
[1752870642400,1.49113547,117150.0,117140.0,1.40083872]
[1752870642598,1.49113547,117150.0,117140.0,1.39883872]
[1752870642900,1.49213547,117150.0,117140.0,1.39983872]
[1752870643100,1.05145402,117150.0,117140.0,1.39983872]
[1752870643301,1.49313547,117150.0,117140.0,1.39983872]
[1752870645204,1.49313547,117150.0,117140.0,0.93828]
[1752870645595,1.66386347,117150.0,117140.0,0.77764]
[1752870647303,1.66386347,117150.0,117140.0,0.93828]
[1752870647499,1.66386347,117150.0,117140.0,0.96102]
[1752870648404,1.66386347,117150.0,117140.0,1.1088913]
[1752870648602,1.49313547,117150.0,117140.0,1.1316313]
[1752870648899,1.56918351,117150.0,117140.0,1.15048618]
[1752870649306,1.05245402,117150.0,117140.0,1.15048618]
[1752870650703,1.56918351,117150.0,117140.0,1.15048618]
[1752870651202,1.56918351,117150.0,117140.0,1.1316313]
[1752870651507,1.56918351,117150.0,117140.0,1.15099046]
[1752870652612,1.05245402,117150.0,117140.0,1.15099046]
[1752870652814,1.56918351,117150.0,117140.0,1.15099046]
[1752870653113,1.56918351,117150.0,117140.0,0.98037916]
[1752870653413,1.05245402,117150.0,117140.0,1.15099046]
[1752870653711,1.56918351,117150.0,117140.0,0.96102]
[1752870655614,1.56918351,117150.0,117140.0,0.18438]
[1752870655817,1.73991151,117150.0,117140.0,0.77584]
[1752870656310,1.22318202,117150.0,117140.0,0.001]
[1752870656516,1.73991151,117150.0,117140.0,0.77584]
[1752870656817,1.56918351,117150.0,117140.0,0.77584]
[1752870657617,1.05245402,117150.0,117140.0,0.77584]
[1752870657818,1.56918351,117150.0,117140.0,0.77584]
[1752870658114,1.73991151,117150.0,117140.0,0.77584]
[1752870658416,2.256641,117150.0,117140.0,0.69043564]
[1752870659420,2.256641,117150.0,117140.0,0.60503128]
[1752870659720,2.506641,117150.0,117140.0,0.60503128]
[1752870659912,2.506641,117150.0,117140.0,0.51962692]
[1752870660115,2.506641,117150.0,117140.0,0.43422256]
[1752870662318,2.506641,117150.0,117140.0,0.59830256]
[1752870662319,1.73991151,117150.0,117140.0,0.59830256]
[1752870662523,1.73991151,117150.0,117140.0,0.62117256]
[1752870662722,1.74004116,117150.0,117140.0,0.62117256]
[1752870663925,1.74004116,117150.0,117140.0,0.18695]
[1752870664228,1.74004116,117150.0,117140.0,1.1310414]
[1752870664620,1.74004116,117150.0,117140.0,0.96043]
[1752870665723,1.56931316,117150.0,117140.0,0.96043]
[1752870666122,1.56931316,117150.0,117140.0,1.1310408]
[1752870666326,1.56931316,117150.0,117140.0,1.00398]
[1752870666521,1.56931316,117150.0,117140.0,1.0035]
[1752870667018,2.08604265,117150.0,117140.0,0.97137]
[1752870667424,1.63018035,117150.0,117140.0,0.97137]
[1752870669126,1.55452399,117150.0,117140.0,0.97137]
[1752870670928,1.55452399,117150.0,117140.0,0.95931]
[1752870671128,1.55452399,117150.0,117140.0,0.93644]
[1752870673725,1.55452399,117150.0,117140.0,0.77236]
[1752870673925,1.72525199,117150.0,117140.0,0.77236]
[1752870674330,1.6643848,117150.0,117140.0,0.77236]
[1752870675130,0.1706114,117140.0,117130.0,1.18072]
[1752870675326,1.06937913,117140.0,117130.0,1.95228]
[1752870675524,1.68119626,117140.0,117130.0,1.95228]
[1752870675728,1.62026053,117140.0,117130.0,1.95228]
[1752870676231,1.6214158,117140.0,117130.0,1.95228]
[1752870676532,1.68233353,117140.0,117130.0,2.13923]
[1752870676732,1.51158953,117140.0,117130.0,2.13923]
[1752870676929,1.51558953,117140.0,117130.0,2.14023]
[1752870677432,1.51658953,117140.0,117130.0,2.14223]
[1752870679232,1.51558953,117140.0,117130.0,2.14123]
[1752870680032,1.51458953,117140.0,117130.0,2.13923]
[1752870680233,1.52058953,117140.0,117130.0,2.14023]
[1752870682430,1.4536718,117140.0,117130.0,1.18072]
[1752870682633,1.89974493,117140.0,117130.0,1.95172]
[1752870682836,1.4586718,117140.0,117130.0,1.95172]
[1752870683335,1.89974493,117140.0,117130.0,1.95172]
[1752870683734,1.93589091,117140.0,117130.0,1.95172]
[1752870684033,2.10663491,117140.0,117130.0,1.95172]
[1752870684234,2.10663491,117140.0,117130.0,1.95128]
[1752870684435,1.66556178,117140.0,117130.0,2.13823]
[1752870685536,1.6294158,117140.0,117130.0,2.13823]
[1752870685934,1.4586718,117140.0,117130.0,2.13823]
[1752870686140,1.51959505,117140.0,117130.0,2.13823]
[1752870686840,1.4586718,117140.0,117130.0,2.13823]
[1752870687542,1.01759867,117140.0,117130.0,2.13823]
[1752870687740,1.4586718,117140.0,117130.0,2.13823]
[1752870688039,1.51960501,117140.0,117130.0,2.13823]
[1752870688539,1.07853188,117140.0,117130.0,2.13823]
[1752870688736,1.51960501,117140.0,117130.0,2.13823]
[1752870689441,1.52825635,117140.0,117130.0,2.13823]
[1752870689941,1.52825635,117140.0,117130.0,1.08188]
[1752870692141,1.58918956,117140.0,117130.0,1.08188]
[1752870692844,1.68918956,117140.0,117130.0,1.08188]
[1752870693843,2.13026269,117140.0,117130.0,0.95751]
[1752870694045,2.13026269,117140.0,117130.0,0.93464]
[1752870694240,2.13026269,117140.0,117130.0,0.93252]
[1752870694539,2.06932948,117140.0,117130.0,0.11511007]
[1752870694739,0.4412213,117120.0,117110.0,1.20509]
[1752870694945,2.17119956,117120.0,117110.0,1.94852]
[1752870695147,2.23330872,117120.0,117110.0,1.1812]
[1752870695340,0.1706558,117110.0,117100.0,0.03581]
[1752870695546,1.76014093,117110.0,117100.0,0.80293]
[1752870695738,1.3190678,117110.0,117100.0,0.80293]
[1752870695938,1.76014093,117110.0,117100.0,0.80293]
[1752870696145,1.7612962,117110.0,117100.0,0.80293]
[1752870696544,1.7612962,117110.0,117100.0,0.91884]
[1752870696741,1.7612962,117110.0,117100.0,0.96539]
[1752870696942,1.9320802,117110.0,117100.0,0.76712]
[1752870697146,1.32022307,117110.0,117100.0,0.96539]
[1752870697352,1.7612962,117110.0,117100.0,1.0732]
[1752870697552,1.32022307,117110.0,117100.0,1.0732]
[1752870697753,1.7612962,117110.0,117100.0,1.0732]
[1752870697951,1.6469162,117110.0,117100.0,1.0732]
[1752870698347,1.6028462,117110.0,117100.0,1.0742]
[1752870698846,1.6018462,117110.0,117100.0,1.0732]
[1752870699048,1.68491604,117110.0,117100.0,1.0752]
[1752870699553,1.84436604,117110.0,117100.0,1.0752]
[1752870700551,1.84436604,117110.0,117100.0,0.30808]
[1752870700752,1.84436604,117110.0,117100.0,1.07432]
[1752870700954,1.84836604,117110.0,117100.0,1.07532]
[1752870702156,1.74978032,117110.0,117100.0,1.2459908]
[1752870702557,1.74978032,117110.0,117100.0,1.07532]
[1752870702757,1.12150735,117110.0,117100.0,1.26501146]
[1752870702954,1.06064307,117110.0,117100.0,1.26501146]
[1752870704952,1.57778604,117110.0,117100.0,1.26501146]
[1752870705553,0.88998727,117110.0,117100.0,1.26501146]
[1752870705757,1.06064277,117110.0,117100.0,1.78215443]
[1752870705958,0.88998727,117110.0,117100.0,1.78215443]
[1752870706158,0.88998727,117110.0,117100.0,1.26501146]
[1752870706652,1.06064277,117110.0,117100.0,1.26501146]
[1752870707959,0.88998727,117110.0,117100.0,1.2459901]
[1752870708161,0.88998727,117110.0,117100.0,1.26468548]
[1752870708859,1.06064277,117110.0,117100.0,1.26468548]
[1752870710660,0.88998727,117110.0,117100.0,1.26468548]
[1752870711253,1.06064277,117110.0,117100.0,1.26468548]
[1752870711551,1.06064277,117110.0,117100.0,0.49844548]
[1752870711763,1.06064277,117110.0,117100.0,1.26252548]
[1752870714757,1.06064277,117110.0,117100.0,1.26172548]
[1752870715064,1.06064277,117110.0,117100.0,1.26152548]
[1752870715463,1.57778574,117110.0,117100.0,0.49844548]
[1752870715665,1.73723574,117110.0,117100.0,1.26140548]
[1752870715866,1.06064277,117110.0,117100.0,1.26140548]
[1752870716164,1.13002116,117110.0,117100.0,1.26140548]
[1752870718756,1.17509116,117110.0,117100.0,0.32777538]
[1752870718959,1.73072797,117110.0,117100.0,0.49844548]
[1752870719161,1.73072797,117110.0,117100.0,1.26056548]
[1752870719366,1.73072797,117110.0,117100.0,0.49844548]
[1752870719767,1.28947116,117110.0,117100.0,0.30908]
[1752870720066,1.73072797,117110.0,117100.0,1.2417501]
[1752870720567,1.28947116,117110.0,117100.0,1.2417501]
[1752870720756,1.28947116,117110.0,117100.0,1.07108]
[1752870721163,1.73072797,117110.0,117100.0,1.2417508]
[1752870721357,1.73072797,117110.0,117100.0,0.99429]
[1752870721358,1.28947116,117110.0,117100.0,0.99429]
[1752870721869,1.28947116,117110.0,117100.0,1.07549]
[1752870722370,1.73072797,117110.0,117100.0,1.2461601]
[1752870722564,1.28947116,117110.0,117100.0,1.2461601]
[1752870722871,1.28947116,117110.0,117100.0,0.4841601]
[1752870723065,1.73072797,117110.0,117100.0,1.2454801]
[1752870723266,1.73072797,117110.0,117100.0,1.07481]
[1752870724968,1.28947116,117110.0,117100.0,1.07481]
[1752870725169,1.73072797,117110.0,117100.0,1.07481]
[1752870725575,1.28947116,117110.0,117100.0,1.2454797]
[1752870725873,1.73072797,117110.0,117100.0,1.07481]
[1752870726074,1.28947116,117110.0,117100.0,1.07481]